Cogmind - Beta 15 @@@ ROGUE MODE // 2025.09.27 @ 15:38:43 Player: Gruff Result: Destroyed by G-47 Trooper with Particle Gun Performance ------------- Evolutions (0) 0 Regions Visited (1) 200 Robots Destroyed (13) 65 Value Destroyed (266) 266 Prototype IDs (0) 0 Alien Tech Used (0) 0 Bonus (0) 0 TOTAL SCORE: 531 Bonus ------- None Cogmind --------- Core Integrity 0/250 Matter 271/300 Energy 250/250 System Corruption 2% Temperature Hot (202) Movement Treading (240) Ox1 Location -10/Materials Parts ------- > --- POWER (1) -------- Ion Engine > --- PROPULSION (2) --- Light Treads > --- UTILITY (2) ------ Large Storage Unit Signal Interpreter > --- WEAPON (2) ------- (None) > --- INVENTORY (15) --- Light Ion Engine Light Ion Engine Heat Sink Grenade Launcher Peak State ------------ > --- POWER ------------ Ion Engine > --- PROPULSION ------- Wheel Wheel > --- UTILITY ---------- Small Storage Unit Large Storage Unit > --- WEAPON ----------- EM Pulse Gun EM Pulse Gun > --- INVENTORY -------- Light Ion Engine Light Ion Engine Light Treads Light Treads [Rating: 7] Favorites ----------- Power Ion Engine Engine Ion Engine Propulsion Light Treads Treads Light Treads Wheel Wheel Utility Large Storage Unit Storage Large Storage Unit Processor Signal Interpreter Weapon Light Assault Rifle Energy Gun EM Pulse Gun Energy Cannon Beam Cannon Ballistic Gun Light Assault Rifle Build | -11 -10 ------- Run | Yrd Mat Slots Evolved . | . . Power . | . . Propulsion . | . . Utility . | . . Weapon . | . . Parts Attached 16 | 7 9 Power 3 | 1 2 Engine 3 | 1 2 Core . | . . Reactor . | . . Propulsion 4 | 3 1 Treads 2 | 1 1 Leg . | . . Wheel 2 | 2 . Hover . | . . Flight . | . . Utility 3 | 1 2 Device . | . . Storage 2 | 1 1 Processor 1 | . 1 Hackware . | . . Protection . | . . Artifact . | . . Weapon 6 | 2 4 Energy Gun 4 | 2 2 Energy Cannon 1 | . 1 Ballistic Gun 1 | . 1 Ballistic Cannon . | . . Launcher . | . . Special Weapon . | . . Impact Weapon . | . . Slashing Weapon . | . . Piercing Weapon . | . . Special Melee Weapon . | . . Unidentified Prototypes . | . . Parts Lost 8 | . 8 Power 1 | . 1 Propulsion 3 | . 3 Utility . | . . Weapon 4 | . 4 Highest Loss Streak 5 | . 5 To Critical Strikes . | . . Average Backups 3 | 1 3 Power 1 | . 1 Propulsion . | 1 . Utility . | . . Weapon . | . . Tool/Special . | . . Unused Backups 3 | . 3 Power 1 | . 1 Propulsion . | . . Utility 1 | . 1 Weapon 1 | . 1 Tool/Special . | . . Average Slot Usage (%) 91 | . 91 Engine 13 | . 13 Treads 20 | . 20 Wheel 4 | . 4 Storage 14 | . 14 Processor 10 | . 10 Energy Gun 6 | . 6 Energy Cannon 8 | . 8 Ballistic Gun 11 | . 11 Peak Build Rating 7 | 6 7 Average Rating 6 | 4 6 On Entrance 3 | . 6 Naked Turns . | . . Heaviest Build 34 | 11 34 Greatest Support 40 | 20 40 Greatest Overweight (x) 8 | . 8 Average Overweight (x) . | . . Largest Inventory Capacity 15 | 8 15 Average Capacity 14 | 6 14 Most Carried 5 | 3 5 Average Carried 3 | 1 3 Final Capacity 15 | 8 15 Final Carried 4 | 3 4 Class Distribution -------------------- 100% | Mutant Dominant Class ---------------- Mutant | -10/Materials Resources | -11 -10 ----------- Run | Yrd Mat Matter Collected 322 | 194 128 Remotely . | . . Salvage Created 382 | . 382 Parts 24 | . 24 Haulers Intercepted 2 | . 2 Recyclers Shooed 1 | . 1 Parts Field Recycled . | . . Retrieved Matter . | . . Parts Self-Destructed . | . . Prevented . | . . Kills | -11 -10 ------- Run | Yrd Mat Combat Hostiles Destroyed 7 | . 7 Guns 5 | . 5 AOE 2 | . 2 Classes Destroyed 6 | . 6 Builder 1 | . 1 Hauler 2 | . 2 Operator 2 | . 2 Watcher 1 | . 1 Swarmer 3 | . 3 Grunt 4 | . 4 Best Kill Streak 3 | . 3 Combat Bots Only 2 | . 2 Max Kills in Single Turn 3 | . 3 Gunslinging . | . . Exploded 2 | . 2 Melee . | . . Uniques/NPCs Destroyed . | . . Combat | -11 -10 -------- Run | Yrd Mat Hostile Shots Fired 87 | . 87 Missed 19 | . 19 Hits 68 | . 68 Projectile 68 | . 68 Part Disruptions 1 | . 1 Damage Taken 969 | 9 960 Core 251 | . 251 Absorbed by Shields . | . . Core Remaining (%) 100 | 100 . Volleys Fired 42 | . 42 Largest 2 | . 2 Hottest 80 | . 80 Shots Fired 76 | . 76 Gun 54 | . 54 Cannon 22 | . 22 Launcher . | . . Special . | . . Kinetic 31 | . 31 Thermal 25 | . 25 Explosive . | . . Electromagnetic 20 | . 20 Robot Hit Streak 16 | . 16 Robot Miss Streak 4 | . 4 Penetration Max . | . . Secondary Targets 1 | . 1 Max Gunslinging Chain 1 | . 1 Shots Hit Robots 38 | . 38 Core Hits 21 | . 21 Critical Kills . | . . Critical Parts Destroyed . | . . Critical Strikes . | . . Melee Attacks . | . . Impact . | . . Slashing . | . . Piercing . | . . Sneak Attacks . | . . Combat Hostiles . | . . Follow-up Attacks . | . . Damage Inflicted 662 | 20 642 Guns 340 | . 340 Cannons 140 | . 140 Explosions 162 | . 162 Melee . | . . Ramming 20 | 20 . Kinetic 143 | . 143 Thermal 174 | . 174 Explosive . | . . Electromagnetic 325 | . 325 Impact . | . . Slashing . | . . Piercing . | . . Highest Corruption 2 | . 2 Average Corruption 2 | . 2 Corruption Purged . | . . Corruption Blocked . | . . Overload Shots . | . . Overflow Damage 83 | . 83 Projectiles . | . . Explosions 83 | . 83 Melee . | . . Knockbacks . | . . Impact . | . . Kinetic . | . . Secondary . | . . Self-Inflicted Damage 117 | 9 108 Shots 3 | . 3 Rammed 3 | 2 1 Targets Rammed 3 | 2 1 Kicked . | . . Crushed . | . . Highest Temperature 464 | . 464 Average Temperature 122 | . 122 Received Heat Transfer 339 | . 339 Effects 1 | . 1 Shutdowns 1 | . 1 Siege Activations . | . . Martial Activations . | . . Shielding Activations . | . . Robots Disrupted . | . . Combat Hostiles . | . . Robots Corrupted . | . . Combat Hostiles . | . . Parts Fried 1 | . 1 Impact Corruptions . | . . Robots Melted . | . . Combat Hostiles . | . . Parts Melted . | . . Heat Transferred 371 | . 371 Parts Sabotaged . | . . Parts Stolen . | . . Parts Stripped . | . . Power Chain Reactions . | . . Alert | -11 -10 ------- Run | Yrd Mat Maximum Alert Level . | . . Low Security (%) 100 | 100 100 Level 1 . | . . Level 2 . | . . Level 3 . | . . Level 4 . | . . Level 5 . | . . High Security . | . . Max Security . | . . Peak Influence 85 | . 85 Initial . | . . Average 14 | . 16 Influence Increases 290 | . 290 Destroy 0b10 Robot/C 140 | . 140 Destroy 0b10 Robot/NC 30 | . 30 Destroy Leader 36 | . 36 Successful Hack 4 | . 4 Disable Machine 45 | . 45 Destroy Structure 5 | . 5 Lose Combat Pursuer 30 | . 30 Influence Decreases 221 | . 221 Time Decay 141 | . 141 Lost Part 80 | . 80 Squads Dispatched 1 | . 1 Investigation 1 | . 1 Extermination . | . . Reinforcement . | . . Assault . | . . Garrison . | . . Intercept . | . . Searches Triggered . | . . Construction Impeded . | . . Haulers Reinforced . | . . Active Scanning Responses . | . . Cargo Convoy Interrupts . | . . Stealth | -11 -10 --------- Run | Yrd Mat Distress Signals 1 | . 1 Communications Jammed . | . . Distress Signals . | . . Times Spotted 13 | . 13 Peak Tracking Total 5 | . 5 Tactical Retreats 1 | . 1 Traps | -11 -10 ------- Run | Yrd Mat Traps Triggered 2 | . 2 Indirectly . | . . Trap Hack Attempts . | . . Triggered . | . . Disarmed . | . . Reprogrammed . | . . Reused . | . . Traps Extracted . | . . Installed . | . . Triggered . | . . Machines | -11 -10 ---------- Run | Yrd Mat Machines Disabled 3 | . 3 Max in Single Turn 3 | . 3 Machines Repaired . | . . Machines Dismantled . | . . Machines Sabotaged . | . . Overloaded Fab Kills . | . . Hacking | -11 -10 --------- Run | Yrd Mat Machines Accessed 4 | . 4 Terminals 4 | . 4 Fabricators . | . . Repair Stations . | . . Recycling Units . | . . Scanalyzers . | . . Garrison Access . | . . Total Hacks 8 | . 8 Successful 4 | . 4 Failed 4 | . 4 Catastrophic 1 | . 1 Database Lockouts . | . . Manual 8 | . 8 Terminals 8 | . 8 Fabricators . | . . Repair Stations . | . . Recycling Units . | . . Scanalyzers . | . . Garrison Access . | . . Terminal Hacks . | . . Fabricator Hacks . | . . Repair Station Hacks . | . . Recycling Unit Hacks . | . . Scanalyzer . | . . Garrison Access Hacks . | . . Unauthorized Hacks 4 | . 4 Terminals 4 | . 4 Botnet 2 | . 2 Skim 2 | . 2 Fabricators . | . . Repair Stations . | . . Recycling Units . | . . Scanalyzers . | . . Garrison Access . | . . Data Cores Recovered . | . . Used . | . . Hacking Detections 3 | . 3 Full Trace Events 1 | . 1 Feedback Events . | . . Feedback Blocked . | . . Robot Schematics Acquired . | . . Robots Built . | . . Authchips . | . . Time . | . . Total Robot Build Rating . | . . Part Schematics Acquired . | . . Parts Built . | . . Authchips . | . . Time . | . . Total Part Build Rating . | . . Parts Repaired . | . . Time . | . . Parts Recycled . | . . Recycled Matter . | . . Retrieved Matter . | . . Retrieved Components . | . . Parts Scanalyzed . | . . Part Schematics Acquired . | . . Parts Damaged . | . . Bothacking | -11 -10 ------------ Run | Yrd Mat Used RIF Installer . | . . Robots Hacked . | . . Non-combat . | . . Combat . | . . Robot Hacks Applied . | . . Relay Couplers Released . | . . Fabnet Peak Effective % . | . . Robots Rewired . | . . Allies Hacked . | . . Hacks Repelled . | . . Allies | -11 -10 -------- Run | Yrd Mat Total Allies . | . . Largest Group . | . . Highest-Rated Group . | . . Highest-Rated Ally . | . . Total Orders . | . . Ally Attacks . | . . Total Damage . | . . Kills . | . . Allies Corrupted . | . . Allies Melted . | . . Intel | -11 -10 ------- Run | Yrd Mat Active Infowar (turns) . | . . Robot Analysis Total . | . . Derelict Logs Recovered . | . . Drone Launches . | . . Drone Recoveries . | . . Exploration | -11 -10 ------------- Run | Yrd Mat Turns Passed 716 | 47 669 Spaces Moved 386 | 39 347 Core 9 | 1 8 Treads 265 | 1 264 Legs . | . . Wheels 112 | 37 75 Hover . | . . Flight . | . . Fastest Speed 50 | 50 80 Average Speed 144 | 81 151 Slowest Speed 450 | 160 450 Overloaded Moves . | . . Propulsion Burnouts . | . . Robots Hopped . | . . Potential Cave-ins . | . . Cave-ins Triggered . | . . Exploration Rate (%) 30 | 4 57 Regions Visited 1 Branch Regions . Pre-discovered Areas . | . . Known Exits Taken . | . . Unknown Exits Taken 1 | 1 . Scrap Searched . | . . Spaces Dug . | . . Terrain Destroyed 5 | . 5 Melee . | . . Projectile . | . . AOE 5 | . 5 Terrain Rammed . | . . Walls Destroyed . | . . Machines Disabled . | . . Actions | -11 -10 --------- Run | Yrd Mat Total 466 | 50 416 Wait 11 | . 11 Move 385 | 38 347 Hop . | . . Pick Up 6 | 3 3 Fast Attach 11 | 6 5 Attach 2 | . 2 Detach 1 | . 1 Swap 4 | 1 3 Drop 1 | . 1 Fire 42 | . 42 Melee . | . . Ram 3 | 2 1 Kick . | . . Crush . | . . Escape Stasis . | . . Rewire . | . . Trap . | . . Miscellaneous . | . . Route ------- -11/Scrapyard -10/Materials (discovered 3 exits: *Mat / *Min / *Sub) History --------- Turn | Location | Event 28 | -11/Scrapyard | Discovered new exit (range 15) 48 | -11/Scrapyard | Entered Materials 97 | -10/Materials | Discovered new exit (range 12) 204 | -10/Materials | Lost 5 parts (1p2n2w) 314 | -10/Materials | Build established: Mutant 327 | -10/Materials | Discovered new exit (range 13) 368 | -10/Materials | Identified exit to Materials 598 | -10/Materials | Identified exit to Mines 619 | -10/Materials | Discovered new exit (range 11) 634 | -10/Materials | Identified exit to Subcaves 687 | -10/Materials | Core integrity fell below 50% 703 | -10/Materials | Core integrity fell below 20% 717 | -10/Materials | Destroyed by G-47 Trooper with Particle Gun Last Messages --------------- R-06 Scavenger inserts Signal Interpreter into recycling unit. K-01 Serf cleans the Recycling Unit. R-06 Scavenger inserts Lgt. Assault Rifle into recycling unit. R-06 Scavenger inserts Ion Engine into recycling unit. K-01 Serf cleans the Recycling Unit. Power failure, Ion Engine shutdown. R-06 Scavenger collects Corrupted Transport Network Coupler. Neutrino Reactor explodes. G-47 Trooper destroyed. Fusion Modulator explodes. W-16 Scout destroyed. G-34 Mercenary destroyed. Lgt. Treads destroyed. Destroyed Lgt. Treads. Beam Cannon destroyed. Destroyed Beam Cannon. Lgt. Assault Rifle destroyed. Destroyed Lgt. Assault Rifle. R-06 Scavenger collects Welding Torch. U-05 Engineer lays Concrete. Map ----- +----------------------------------------------------+ | #??## #?????# #?????????????? | | #??#> ####### #?????????????? | | # ########??## =! / """ #?????????????? | | ## #??????????# # #|!#### """ #?????????????? | | ##! !#????????????###^!#??# """ #?????????????? | | ###!! !##?????????????##% ##?# """ #?????????????? | | #?######??????????????## ##?# """ #?????????????? | | #???????????? ??###### ##?# #?????????????? | | #????????????? ?# ##?# ! ??????????????? | | #??????????????" # ##?# ??????????????? | | #########??????"" # #??##+####?????????????? | | # #?????""" + ##### #????????????????? | | # """ #?????""" # ########?????????? | | + """ #??????" ?# g ?????????? | | # """ #?????""??# g """ ?????????? | | # #?????????## u "Y" ????????? | | #########??????????# ! u ! ????????? | | #?????????????????## u u %#####????????????? | | ??????????????????#; =#????????????????? | | ??????????????????#; ######???????????? | | ??????????????????#; #???????????? | | ??????????????????#; ! #### ????????? | | ??????????????????#; #????????????????? | | ??????????????????## [ #????????????????? | | ???????????????????# [] #????????????????? | | ???????????????????# ]@%[ #????????????????? | | ???????????????????# * #????????????????? | | ????????????????"" t +????????????? | | ???????????????""" # ############????????????? | | ???????????????"""?# ????????????????????????? | | ???????????????????######????????????????????????? | | ?????????????????????????????????????????????????? | | | | | | | | | | | | | | | | | | | | | | | | | | | | | | | | | | | | | +----------------------------------------------------+ Best States ------------- Heat Dissipation 25 Energy Generation 10 Energy Capacity 250 Matter Stores 278 Matter Capacity 300 Sight Range 16 Terrain Scan Density 10 Evasion (%) 44 Recoil Reduction 2 Item Schematics ----------------- None Robot Schematics ------------------ None Fabricated ------------ Nothing Repaired ---------- Nothing Alien Tech Used ----------------- None Achievements -------------- None Challenges ------------ None Game ------ Seed BiomechanicalSapperComputer Manual? 0 Play Time 00:08:49 Cumulative 52.9 hours Start 2025.09.27 @ 15:34:02 End 2025.09.27 @ 15:38:43 Sessions 1 Manual Loads 0 Difficulty Rogue Special Mode None Game No. 68 Rogue 68 Adventurer 0 Explorer 0 Win Type - Total 0 Types 0/0/0/0/0/0/0/0/0/0 Lore% 35 Gallery% 34 Achievement% 30 Wizard Run 0 Options --------- Layout 0 ASCII 0 Keyboard 1 Movement Numpad Keybinds 0 Fullscreen 1 Font 24/Smallcaps Map View 183x50 Zoom Use 0% Tactical HUD 0 Map Filters NONE Filters NONE Steam 1 RUN: d89fe39e-595f-4e76-a658-f70c9bd7b652